[Event "FIDE World Cup O12-B 2024"]
[Site "Batumi"]
[Date "2024.06.27"]
[Round "5.1"]
[White "Qu, Haoming"]
[Black "Batbaatar, Baatar"]
[Result "1-0"]
[ECO "B50"]
[WhiteElo "1877"]
[BlackElo "1724"]
[Annotator "NA RC"]
[PlyCount "121"]
[EventDate "2024.06.23"]
[EventType "swiss"]
[EventCountry "GEO"]
[SourceTitle "playchess.com"]
[Source "ChessBase"]
[SourceQuality "1"]
[TimeControl "5400+30"]

1. e4 {[%emt 0:00:07]} c5 {[%emt 0:00:05]} 2. Nf3 {[%emt 0:00:20]} d6 {[%emt 0:00:08]} 3. c3 {[%emt 0:00:14]} Nf6 {[%emt 0:00:10]} 4. h3 {[%emt 0:00:27]} Nbd7 {[%emt 0:00:46]} 5. Bd3 {[%emt 0:02:42]} g6 {[%emt 0:03:21]} 6. Bc2 {[%emt 0:00:19]} Bg7 {[%emt 0:00:32]} 7. O-O {[%emt 0:00:58]} O-O {[%emt 0:00:46]} 8. d4 {[%emt 0:00:29]} cxd4 {[%emt 0:05:42]} 9. cxd4 {[%emt 0:00:43]} b5 {[%emt 0:03:14]} 10. a3 {[%emt 0:02:19]} e5 {[%emt 0:06:59]} 11. Nc3 {[%emt 0:05:00]} a6 {[%emt 0:01:18]} 12. dxe5 {[%emt 0:02:53]} dxe5 {[%emt 0:03:35]} 13. Qe2 {[%emt 0:04:06]} Bb7 {[%emt 0:00:29]} 14. Bg5 {[%emt 0:01:09]} h6 {[%emt 0:01:33]} 15. Bh4 {[%emt 0:00:34]} Qc7 {[%emt 0:03:43]} 16. Rfd1 {[%emt 0:08:24]} Nb6 {[%emt 0:05:02]} 17. Bb3 $11 {[%emt 0:04:59]} Nh5 {[%emt 0:04:47]} 18. Rac1 {[%emt 0:04:40]} Nf4 {[%emt 0:03:27]} 19. Qf1 {[%emt 0:14:58]} Nc4 {[%emt 0:06:54]} 20. Bg3 {[%emt 0:11:04]} Nxb2 {[%emt 0:08:18]} 21. Na4 {[%emt 0:00:13]} Qa5 {[%emt 0:01:03]} 22. Nxb2 {[%emt 0:02:40]} Qxa3 {[%emt 0:00:18]} 23. Nd3 {[%emt 0:03:37]} Bxe4 {[%emt 0:13:45]} 24. Nc5 {[%emt 0:16:37]} Bxf3 {[%emt 0:06:19]} 25. gxf3 {[%emt 0:00:00]} Rac8 {[%emt 0:00:15]} 26. Bxf4 {[%emt 0:13:58]} exf4 {[%emt 0:00:08]} 27. Qd3 {[%emt 0:00:00]} Kh7 {[%emt 0:00:35]} 28. Bd5 {[%emt 0:00:00]} Qb2 {[%emt 0:05:44]} 29. Rb1 {[%emt 0:00:00]} Qf6 {[%emt 0:01:34]} 30. Nd7 {[%emt 0:00:00]} Qg5+ {[%emt 0:00:22]} 31. Kh2 {[%emt 0:00:00]} Rfd8 {[%emt 0:02:24]} 32. Bxf7 {[%emt 0:00:00]} Rc7 {[%emt 0:05:28]} 33. Qxg6+ {[%emt 0:00:00]} Qxg6 {[%emt 0:00:21]} 34. Bxg6+ {[%emt 0:00:00]} Kxg6 {[%emt 0:01:39]} 35. Ne5+ {[%emt 0:00:00]} Bxe5 {[%emt 0:00:26]} 36. Rxd8 {[%emt 0:00:00]} Rc6 {[%emt 0:00:19]} 37. Rg1+ {[%emt 0:00:00]} Kf7 {[%emt 0:02:12]} 38. Rd7+ {[%emt 0:00:00]} Ke6 {[%emt 0:00:17]} 39. Rb7 {[%emt 0:00:18]} Kd5 {[%emt 0:00:41]} 40. h4 {[%emt 0:00:14]} Bf6 {[%emt 0:01:00]} 41. h5 {[%emt 0:00:53]} Bg5 {[%emt 0:00:05]} 42. Rd1+ {[%emt 0:00:10]} Ke5 {[%emt 0:00:24]} 43. Kh3 {[%emt 0:01:09]} Rc5 {[%emt 0:01:20]} 44. Ra1 {[%emt 0:00:19]} Rc6 {[%emt 0:00:16]} 45. Kg4 {[%emt 0:00:12]} Kd4 {[%emt 0:00:17]} 46. Rd7+ {[%emt 0:01:01]} Kc5 {[%emt 0:00:25]} 47. Rc1+ {[%emt 0:01:14]} Kb6 {[%emt 0:00:08]} 48. Rxc6+ {[%emt 0:00:26]} Kxc6 {[%emt 0:00:10]} 49. Ra7 {[%emt 0:00:00]} b4 {[%emt 0:01:38]} 50. Rxa6+ {[%emt 0:00:42]} Kc5 {[%emt 0:01:09]} 51. Ra5+ {[%emt 0:00:31]} Kc4 {[%emt 0:00:13]} 52. Rxg5 {[%emt 0:01:20]} hxg5 {[%emt 0:00:04]} 53. h6 {[%emt 0:00:01]} b3 {[%emt 0:00:04]} 54. h7 {[%emt 0:00:03]} b2 {[%emt 0:00:05]} 55. h8=Q {[%emt 0:00:02]} b1=Q {[%emt 0:06:03]} 56. Qc8+ {[%emt 0:00:09]} Kd5 {[%emt 0:00:00]} 57. Qf5+ {[%emt 0:00:07]} Qxf5+ 58. Kxf5 Kd6 {[%emt 0:01:30]} 59. Kxg5 Ke5 60. Kg4 Kf6 61. Kxf4 {[%emt 0:08:39]} 1-0

[Event "FIDE World Cup O12-B 2024"]
[Site "Batumi"]
[Date "2024.06.27"]
[Round "5.2"]
[White "Ibrahimli, Suat"]
[Black "Gabadadze, Gabriel"]
[Result "1/2-1/2"]
[ECO "A36"]
[WhiteElo "1852"]
[BlackElo "1975"]
[Annotator "NA RC"]
[PlyCount "117"]
[EventDate "2024.06.23"]
[EventType "swiss"]
[EventCountry "GEO"]
[SourceTitle "playchess.com"]
[Source "ChessBase"]
[SourceQuality "1"]
[TimeControl "5400+30"]

1. c4 {[%emt 0:00:07]} c5 {[%emt 0:00:21]} 2. Nc3 {[%emt 0:00:05]} Nc6 {[%emt 0:00:12]} 3. g3 {[%emt 0:00:04]} g6 {[%emt 0:00:06]} 4. Bg2 {[%emt 0:00:03]} Bg7 {[%emt 0:00:08]} 5. d3 {[%emt 0:00:06]} e6 {[%emt 0:00:56]} 6. Bf4 {[%emt 0:00:04] A36: Symmetrical English vs ...g6: 4 Bg2 Bg7.} d6 {[%emt 0:01:57]} 7. Qc1 {[%emt 0:00:06]} e5 {[%emt 0:06:15]} 8. Bd2 {[%emt 0:00:36]} Nge7 {[%emt 0:02:13]} 9. Bh6 {[%emt 0:03:57]} Bxh6 {[%emt 0:01:23]} 10. Qxh6 {[%emt 0:00:06]} Nf5 {[%emt 0:00:17]} 11. Qd2 {[%emt 0:00:07]} h5 {[%emt 0:06:57]} 12. e3 {[%emt 0:00:42]} O-O {[%emt 0:02:56]} 13. Nge2 {[%emt 0:01:18]} Be6 {[%emt 0:03:36]} 14. a3 {[%emt 0:01:33]} a5 {[%emt 0:04:22]} 15. O-O {[%emt 0:00:43]} Kg7 {[%emt 0:02:02]} 16. Nd5 {[%emt 0:03:02]} Bxd5 {[%emt 0:06:05]} 17. cxd5 {[%emt 0:00:41]} Nce7 {[%emt 0:02:13]} 18. b4 {[%emt 0:06:35]} b6 {[%emt 0:02:40]} 19. d4 {[%emt 0:05:41]} (19. bxc5 $14 bxc5 20. Nc3) 19... exd4 {[%emt 0:02:51]} 20. exd4 {[%emt 0:03:43]} ({Don't play} 20. e4 Nh6 21. bxc5 bxc5 $15) 20... cxb4 {[%emt 0:01:53]} 21. axb4 {[%emt 0:00:15]} axb4 {[%emt 0:00:56]} 22. Qxb4 {[%emt 0:00:08]} Rxa1 {[%emt 0:02:14]} 23. Rxa1 {[%emt 0:00:06]} Qc7 {[%emt 0:01:12]} 24. Rc1 {[%emt 0:01:43]} Qa7 {[%emt 0:01:37]} 25. h3 {[%emt 0:05:31]} Qa6 $11 {[%emt 0:07:11]} 26. Rc2 {[%emt 0:18:00]} Nc8 {[%emt 0:03:06]} 27. Nc3 {[%emt 0:03:14]} Qd3 {[%emt 0:02:58]} 28. Be4 {[%emt 0:06:07]} Qxd4 {[%emt 0:01:05]} 29. Qxd4+ {[%emt 0:00:07]} Nxd4 {[%emt 0:00:05]} 30. Rb2 {[%emt 0:00:08]} f5 {[%emt 0:11:20]} 31. Bd3 {[%emt 0:14:29]} Nf3+ {[%emt 0:04:32]} 32. Kf1 {[%emt 0:00:22]} Ne5 {[%emt 0:01:20]} 33. Ba6 {[%emt 0:00:46]} Nd7 {[%emt 0:01:27]} 34. Na4 {[%emt 0:04:43]} Ne7 {[%emt 0:09:35]} 35. Bb5 {[%emt 0:01:08]} Nf6 {[%emt 0:03:57]} 36. Nxb6 {[%emt 0:04:04]} Nfxd5 {[%emt 0:01:12]} 37. Nxd5 {[%emt 0:00:15]} Nxd5 {[%emt 0:00:01]} 38. Bc4 {[%emt 0:00:21]} Nf6 {[%emt 0:00:59]} 39. Rb7+ {[%emt 0:00:55]} Kh6 {[%emt 0:00:15]} 40. Rf7 {[%emt 0:02:37]} Rxf7 {[%emt 0:00:31]} 41. Bxf7 {[%emt 0:00:10]} d5 {[%emt 0:00:55]} 42. Be6 {[%emt 0:00:16]} Kg7 {[%emt 0:01:03]} 43. Ke2 {[%emt 0:00:38]} Ne4 {[%emt 0:01:59]} 44. Ke3 {[%emt 0:01:04]} d4+ {[%emt 0:00:47]} 45. Ke2 {[%emt 0:00:34]} Ng5 {[%emt 0:01:10]} 46. Bd5 {[%emt 0:03:46]} Nxh3 {[%emt 0:00:45]} 47. f4 {[%emt 0:00:08]} h4 {[%emt 0:01:18]} 48. Bg2 {[%emt 0:00:23]} Ng1+ {[%emt 0:00:38]} 49. Kf2 {[%emt 0:00:04]} hxg3+ {[%emt 0:00:09]} 50. Kxg1 {[%emt 0:00:17]} g5 {[%emt 0:00:28]} 51. fxg5 {[%emt 0:04:33]} Kg6 {[%emt 0:00:11]} 52. Bf1 {[%emt 0:00:04]} Kxg5 {[%emt 0:00:43]} 53. Kg2 {[%emt 0:00:16]} f4 {[%emt 0:00:38]} 54. Kf3 {[%emt 0:00:08]} Kf5 {[%emt 0:00:53]} 55. Bd3+ {[%emt 0:00:17]} Ke5 {[%emt 0:00:41]} 56. Bf1 {[%emt 0:11:34]} Kf5 {[%emt 0:00:11]} 57. Bd3+ {[%emt 0:00:00]} Kg5 {[%emt 0:00:01]} 58. Bf1 {[%emt 0:00:00]} Kf5 {[%emt 0:01:28]} 59. Bd3+ {[%emt 0:00:00]} 1/2-1/2

[Event "FIDE World Cup O12-B 2024"]
[Site "Batumi"]
[Date "2024.06.27"]
[Round "5.3"]
[White "Aadik Theophane Lenin"]
[Black "Zhang, Haoxuan(Zj)"]
[Result "1-0"]
[ECO "A57"]
[WhiteElo "1852"]
[BlackElo "1907"]
[Annotator "NA RC"]
[PlyCount "111"]
[EventDate "2024.06.23"]
[EventType "swiss"]
[EventCountry "GEO"]
[SourceTitle "playchess.com"]
[Source "ChessBase"]
[SourceQuality "1"]
[TimeControl "5400+30"]

1. d4 {[%emt 0:00:22]} Nf6 {[%emt 0:00:05]} 2. Nf3 {[%emt 0:00:07]} g6 {[%emt 0:02:00]} 3. c4 {[%emt 0:00:33]} c5 {[%emt 0:00:06]} 4. d5 {[%emt 0:00:06]} b5 {[%emt 0:00:04]} 5. cxb5 {[%emt 0:00:11]} a6 {[%emt 0:00:03]} 6. b6 {[%emt 0:00:09]} d6 {[%emt 0:02:12]} 7. Nc3 {[%emt 0:00:08]} Nbd7 {[%emt 0:02:12]} 8. e4 {[%emt 0:00:12]} Bg7 {[%emt 0:02:07]} 9. a4 {[%emt 0:00:15]} a5 {[%emt 0:00:47]} 10. Bb5 {[%emt 0:07:30]} O-O {[%emt 0:03:44]} 11. O-O {[%emt 0:00:31]} Qxb6 {[%emt 0:07:22]} 12. Nd2 {[%emt 0:02:18]} Qc7 {[%emt 0:04:47]} 13. Qe2 {[%emt 0:02:35]} Bb7 {[%emt 0:00:31]} 14. f4 {[%emt 0:09:08]} e6 {[%emt 0:08:23]} 15. dxe6 {[%emt 0:05:37]} fxe6 {[%emt 0:00:06]} 16. Nc4 {[%emt 0:08:11]} Nb6 {[%emt 0:07:40]} 17. Rd1 $11 {[%emt 0:25:21]} (17. e5 $14 {deserves consideration.} dxe5 18. Qxe5 (18. fxe5 Nfd5 $11) 18... Qxe5 19. fxe5) 17... Rfd8 {[%emt 0:06:57]} 18. e5 {[%emt 0:08:12]} dxe5 {[%emt 0:01:11]} 19. Rxd8+ {[%emt 0:00:31]} Rxd8 {[%emt 0:11:23]} 20. fxe5 {[%emt 0:01:28]} Nfd5 {[%emt 0:01:21]} 21. Bg5 {[%emt 0:04:28]} Rf8 {[%emt 0:02:01]} 22. Nd6 {[%emt 0:02:08]} Bc6 {[%emt 0:02:54]} 23. Rd1 {[%emt 0:02:33]} Kh8 {[%emt 0:09:57]} 24. Rf1 {[%emt 0:04:00]} Nxc3 {[%emt 0:04:51]} 25. bxc3 {[%emt 0:00:11]} Nd7 {[%emt 0:00:43]} 26. Bf4 {[%emt 0:05:18]} Nb6 {[%emt 0:04:46]} 27. Bg5 {[%emt 0:01:50]} Nd7 {[%emt 0:00:34]} 28. Rxf8+ {[%emt 0:03:19]} Bxf8 {[%emt 0:00:39]} 29. Bf4 {[%emt 0:02:24]} Nb6 {[%emt 0:03:40]} 30. Qg4 {[%emt 0:01:54]} Bd7 {[%emt 0:03:06]} 31. Qg5 {[%emt 0:00:26]} Nd5 {[%emt 0:00:26]} 32. Bg3 {[%emt 0:00:55]} Kg8 {[%emt 0:02:00]} 33. c4 {[%emt 0:00:55]} Be7 {[%emt 0:00:32]} 34. Qd2 {[%emt 0:00:05]} Nb6 {[%emt 0:02:18]} 35. Qf2 {[%emt 0:01:20]} Bxd6 {[%emt 0:00:59]} 36. exd6 {[%emt 0:00:01]} Qc8 {[%emt 0:00:31]} 37. Be5 {[%emt 0:00:22]} Qf8 {[%emt 0:00:47]} 38. Qxc5 {[%emt 0:00:12]} Qf5 {[%emt 0:03:18]} 39. Qxb6 {[%emt 0:00:27]} Qb1+ {[%emt 0:00:23]} 40. Kf2 {[%emt 0:00:04]} Qf5+ {[%emt 0:00:17]} 41. Ke2 {[%emt 0:00:31]} Qxe5+ {[%emt 0:00:04]} 42. Qe3 {[%emt 0:00:05]} Qxd6 {[%emt 0:00:33]} 43. c5 {[%emt 0:01:26]} Qd5 {[%emt 0:00:33]} 44. Bxd7 {[%emt 0:00:10]} Qxd7 {[%emt 0:00:15]} 45. Qe4 {[%emt 0:00:11]} Kf7 {[%emt 0:00:51]} 46. c6 {[%emt 0:01:10]} Qc7 {[%emt 0:00:09]} 47. Qc4 {[%emt 0:00:58]} Ke7 {[%emt 0:01:31]} 48. Qc5+ {[%emt 0:00:04]} Ke8 {[%emt 0:00:22]} 49. Kd3 {[%emt 0:01:27]} Qb8 {[%emt 0:01:17]} 50. c7 {[%emt 0:00:29]} Qb3+ {[%emt 0:01:16]} 51. Ke4 {[%emt 0:01:03]} Qxa4+ {[%emt 0:00:30]} 52. Ke5 {[%emt 0:00:09]} Qa1+ {[%emt 0:00:29]} 53. Kd6 {[%emt 0:00:29]} Qd1+ {[%emt 0:00:06]} 54. Kc6 {[%emt 0:00:08]} Qa4+ {[%emt 0:01:07]} 55. Kb7 {[%emt 0:00:09]} Qb3+ {[%emt 0:00:21]} 56. Ka7 {[%emt 0:00:13]} 1-0

[Event "FIDE World Cup O12-B 2024"]
[Site "Batumi"]
[Date "2024.06.27"]
[Round "5.4"]
[White "Garakhanov, Shamsi"]
[Black "Kakavand, Ramtin"]
[Result "1-0"]
[ECO "D15"]
[WhiteElo "1884"]
[BlackElo "2059"]
[Annotator "NA RC"]
[PlyCount "130"]
[EventDate "2024.06.23"]
[EventType "swiss"]
[EventCountry "GEO"]
[SourceTitle "playchess.com"]
[Source "ChessBase"]
[SourceQuality "1"]
[TimeControl "5400+30"]

1. d4 {[%emt 0:00:21]} d5 {[%emt 0:00:07]} 2. c4 {[%emt 0:00:06]} c6 {[%emt 0:00:05]} 3. Nc3 {[%emt 0:00:04]} Nf6 {[%emt 0:00:06]} 4. e3 {[%emt 0:00:03]} e6 {[%emt 0:00:09]} 5. Nf3 {[%emt 0:00:35]} a6 {[%emt 0:00:16]} 6. Bd3 {[%emt 0:01:45]} b5 {[%emt 0:03:17]} 7. b3 {[%emt 0:01:54]} Bd6 {[%emt 0:01:22] D15: Slav Defence: 4 Nc3 a6 and gambit lines after 4 Nc3 dxc4.} 8. O-O {[%emt 0:00:58]} O-O {[%emt 0:00:14]} 9. Qc2 {[%emt 0:01:00]} Bb7 {[%emt 0:17:24]} 10. Ne5 {[%emt 0:05:46]} h6 {[%emt 0:06:40]} 11. f4 {[%emt 0:01:10]} (11. Bb2 $142) 11... Nbd7 {[%emt 0:04:50]} ({Black should try} 11... dxc4 $11 12. bxc4 c5) 12. c5 {[%emt 0:03:06]} Bc7 {[%emt 0:00:41]} 13. Bd2 {[%emt 0:00:28]} Kh8 {[%emt 0:05:34]} 14. Rf3 {[%emt 0:02:25]} Ng8 {[%emt 0:01:26]} 15. Rg3 {[%emt 0:12:11]} ({White should try} 15. Ne2 $16) 15... Ne7 {[%emt 0:05:46]} 16. Ne2 {[%emt 0:06:16]} f6 {[%emt 0:02:58]} 17. Ng6+ {[%emt 0:00:33]} Nxg6 {[%emt 0:00:14]} 18. Rxg6 {[%emt 0:00:10]} e5 {[%emt 0:02:51]} 19. fxe5 {[%emt 0:00:13]} (19. Bf5 $14) 19... fxe5 {[%emt 0:00:34]} 20. e4 {[%emt 0:03:46]} exd4 $11 {[%emt 0:12:36]} 21. exd5 {[%emt 0:03:12]} Ne5 {[%emt 0:01:03]} 22. Rg3 {[%emt 0:09:12]} Nxd3 {[%emt 0:06:14]} 23. Rxd3 {[%emt 0:00:12]} Qxd5 {[%emt 0:00:26]} 24. Nxd4 {[%emt 0:03:53]} Rad8 {[%emt 0:03:09]} 25. Be3 {[%emt 0:02:41]} Bc8 {[%emt 0:11:32]} 26. Rad1 {[%emt 0:02:19]} Qh5 {[%emt 0:00:50]} 27. h3 {[%emt 0:10:20]} Qg6 {[%emt 0:00:33]} 28. Kh1 {[%emt 0:10:06]} Rde8 {[%emt 0:02:22]} 29. Bg1 {[%emt 0:00:42]} Rf6 {[%emt 0:04:27]} 30. Qc3 {[%emt 0:05:48]} Ref8 {[%emt 0:03:37]} 31. Re3 {[%emt 0:06:37]} Bb8 {[%emt 0:01:35]} 32. Qd3 {[%emt 0:01:26]} Qh5 {[%emt 0:00:26]} 33. b4 {[%emt 0:01:43]} Qd5 {[%emt 0:01:44]} 34. a3 {[%emt 0:01:21]} Qg5 {[%emt 0:01:13]} 35. Rde1 {[%emt 0:02:54]} Rg6 {[%emt 0:00:34]} 36. Qe2 {[%emt 0:01:21]} Kh7 {[%emt 0:00:40]} 37. Nf3 {[%emt 0:00:46]} Qf6 {[%emt 0:00:50]} 38. Bh2 {[%emt 0:00:51]} Bxh2 {[%emt 0:00:09]} 39. Kxh2 {[%emt 0:00:08]} Qf4+ {[%emt 0:00:30]} 40. Kh1 {[%emt 0:00:03]} Rg3 {[%emt 0:00:41]} 41. Ne5 {[%emt 0:00:50]} Rxe3 {[%emt 0:00:40]} 42. Qxe3 {[%emt 0:00:02]} Qxe3 {[%emt 0:00:18]} 43. Rxe3 {[%emt 0:00:04]} Re8 {[%emt 0:00:10]} 44. Kg1 {[%emt 0:00:27]} g5 {[%emt 0:00:27]} 45. Kf2 {[%emt 0:00:03]} Re6 {[%emt 0:00:19]} 46. Kf3 {[%emt 0:00:53]} Kg7 {[%emt 0:00:31]} 47. Ke4 {[%emt 0:00:58]} Re7 {[%emt 0:00:44]} 48. Kd4 {[%emt 0:01:14]} Bd7 {[%emt 0:00:10]} 49. Rf3 {[%emt 0:00:32]} Be8 {[%emt 0:00:07]} 50. g3 {[%emt 0:00:58]} Ra7 {[%emt 0:00:47]} 51. h4 {[%emt 0:00:18]} gxh4 {[%emt 0:00:32]} 52. gxh4 {[%emt 0:00:21]} Ra8 {[%emt 0:00:42]} 53. Ke4 {[%emt 0:00:57]} a5 {[%emt 0:00:54]} 54. Kf5 {[%emt 0:00:29]} axb4 {[%emt 0:00:29]} 55. axb4 {[%emt 0:00:04]} Ra4 {[%emt 0:00:38]} 56. Rf4 {[%emt 0:00:07]} Ra1 {[%emt 0:00:34]} 57. Rd4 {[%emt 0:00:29]} Rb1 {[%emt 0:00:33]} 58. Ke6 {[%emt 0:00:10]} h5 {[%emt 0:00:26]} 59. Ke7 {[%emt 0:00:47]} Re1 {[%emt 0:00:10]} 60. Kxe8 {[%emt 0:00:40]} Rxe5+ {[%emt 0:00:06]} 61. Kd7 {[%emt 0:00:04]} Kf7 {[%emt 0:00:18]} 62. Kxc6 {[%emt 0:00:04]} Ke6 {[%emt 0:00:21]} 63. Kxb5 {[%emt 0:00:09]} Re1 {[%emt 0:00:04]} 64. Kc6 {[%emt 0:00:06]} Rg1 {[%emt 0:00:34]} 65. b5 {[%emt 0:00:07]} Rg6 {[%emt 0:02:41]} 1-0

[Event "FIDE World Cup O12-B 2024"]
[Site "Batumi"]
[Date "2024.06.27"]
[Round "5.5"]
[White "Diaz Guerrero, Jesus Daniel"]
[Black "Golikov, Ivan"]
[Result "1/2-1/2"]
[ECO "B30"]
[WhiteElo "2032"]
[BlackElo "1723"]
[Annotator "NA RC"]
[PlyCount "150"]
[EventDate "2024.06.23"]
[EventType "swiss"]
[EventCountry "GEO"]
[SourceTitle "playchess.com"]
[Source "ChessBase"]
[SourceQuality "1"]
[TimeControl "5400+30"]

1. e4 {[%emt 0:00:18]} c5 {[%emt 0:00:05]} 2. Nf3 {[%emt 0:00:06]} Nc6 {[%emt 0:00:04]} 3. Bb5 {[%emt 0:00:57]} e5 {[%emt 0:00:18]} 4. O-O {[%emt 0:00:31]} Bd6 {[%emt 0:00:19]} 5. c3 {[%emt 0:01:06]} Nge7 {[%emt 0:00:20]} 6. d4 {[%emt 0:04:50]} cxd4 {[%emt 0:00:08]} 7. cxd4 {[%emt 0:00:13]} exd4 {[%emt 0:00:04]} 8. Nxd4 {[%emt 0:01:14]} a6 {[%emt 0:00:07]} 9. Ba4 {[%emt 0:03:49]} O-O {[%emt 0:01:30]} 10. Be3 {[%emt 0:06:05]} Qc7 {[%emt 0:15:07]} 11. h3 {[%emt 0:12:43]} b5 {[%emt 0:06:48]} 12. Bc2 {[%emt 0:05:49]} Bb7 {[%emt 0:03:55]} 13. Nd2 {[%emt 0:01:34]} Rac8 {[%emt 0:02:22]} 14. Rc1 {[%emt 0:02:51]} (14. N4f3 $11) 14... Rfd8 $2 {[%emt 0:05:48] [#]} (14... Nxd4 $15 {keeps the upper hand.} 15. Bxd4 Bh2+ 16. Kh1 Bf4) 15. N2b3 {[%emt 0:10:28]} (15. Bb3 $1 $16) 15... Ne5 {[%emt 0:13:05]} 16. f4 {[%emt 0:09:29]} Nc4 {[%emt 0:01:54]} 17. Qe2 $11 {[%emt 0:05:05]} (17. e5 $1 $14 Bb4 (17... Nxe3 18. Bxh7+ Kxh7 19. Qd3+ Kg8 20. Rxc7 $16) 18. Bf2) 17... Nc6 {[%emt 0:11:44]} 18. Nf5 {[%emt 0:12:24]} Bf8 {[%emt 0:01:52]} 19. Bb1 {[%emt 0:12:32]} g6 {[%emt 0:09:49]} 20. Ng3 {[%emt 0:00:43]} Bg7 {[%emt 0:00:42]} 21. e5 {[%emt 0:00:16]} d6 {[%emt 0:04:12]} 22. exd6 {[%emt 0:00:14]} Qxd6 {[%emt 0:01:39]} 23. Ne4 {[%emt 0:00:53]} Qe6 {[%emt 0:03:04]} 24. Kh1 {[%emt 0:04:11]} f5 {[%emt 0:03:57]} 25. Nbc5 {[%emt 0:00:13]} Qe7 {[%emt 0:01:54]} 26. Nxb7 {[%emt 0:00:42]} Qxb7 {[%emt 0:00:13]} 27. Ng5 {[%emt 0:01:19]} Re8 {[%emt 0:01:23]} 28. Rxc4 {[%emt 0:00:26]} h6 {[%emt 0:04:33]} 29. Rcc1 {[%emt 0:02:46]} hxg5 {[%emt 0:00:46]} 30. Qf3 {[%emt 0:00:15]} Bxb2 {[%emt 0:02:17]} 31. Rc2 {[%emt 0:00:08]} Ba3 {[%emt 0:02:22]} 32. fxg5 {[%emt 0:01:08]} Qd7 {[%emt 0:01:50]} 33. Bg1 {[%emt 0:01:07]} Bf8 {[%emt 0:00:54]} 34. Qb3+ {[%emt 0:00:19]} Kh7 {[%emt 0:01:09]} 35. Rcf2 {[%emt 0:00:39]} Ne5 {[%emt 0:01:08]} 36. Rxf5 {[%emt 0:00:19]} Bg7 {[%emt 0:00:36]} 37. R5f4 {[%emt 0:00:20]} Rc4 {[%emt 0:00:22]} 38. Qg3 {[%emt 0:00:52]} Rxf4 {[%emt 0:00:30]} 39. Qxf4 {[%emt 0:00:30]} Qc6 {[%emt 0:00:33]} 40. Bd4 {[%emt 0:00:33]} Kg8 {[%emt 0:00:34]} 41. Bxe5 {[%emt 0:00:17]} Rxe5 {[%emt 0:00:09]} 42. Rc1 {[%emt 0:00:39]} Qe6 {[%emt 0:00:26]} 43. Qf1 {[%emt 0:00:35]} Rxg5 {[%emt 0:00:32]} 44. Qf2 {[%emt 0:00:23]} Re5 {[%emt 0:00:51]} 45. Bd3 {[%emt 0:00:34]} Rd5 {[%emt 0:00:30]} 46. Bf1 {[%emt 0:00:32]} Rf5 {[%emt 0:00:28]} 47. Qd2 {[%emt 0:00:24]} Rd5 {[%emt 0:00:34]} 48. Qf2 {[%emt 0:00:35]} Rf5 {[%emt 0:00:23]} 49. Qd2 {[%emt 0:00:10]} Rd5 {[%emt 0:00:34]} 50. Qf2 {[%emt 0:00:46]} Rf5 {[%emt 0:00:23]} 51. Qd2 {[%emt 0:00:25]} Rd5 {[%emt 0:00:24]} 52. Qc2 {[%emt 0:00:36]} Bh6 {[%emt 0:00:35]} 53. Qc8+ {[%emt 0:00:36]} Qxc8 {[%emt 0:00:13]} 54. Rxc8+ {[%emt 0:00:01]} Kh7 {[%emt 0:00:17]} 55. Rc7+ {[%emt 0:00:42]} Bg7 {[%emt 0:00:23]} 56. Rc1 {[%emt 0:00:47]} Rd4 {[%emt 0:01:09]} 57. g4 {[%emt 0:00:25]} Be5 {[%emt 0:00:34]} 58. Re1 {[%emt 0:00:31]} Bg3 {[%emt 0:00:37]} 59. Re7+ {[%emt 0:00:31]} Kh6 {[%emt 0:00:18]} 60. Re6 {[%emt 0:00:14]} Ra4 {[%emt 0:00:26]} 61. Bd3 {[%emt 0:00:18]} Kg5 {[%emt 0:00:31]} 62. Kg2 {[%emt 0:00:27]} Bh4 {[%emt 0:00:28]} 63. Kf3 {[%emt 0:00:31]} Rf4+ {[%emt 0:00:38]} 64. Ke3 {[%emt 0:00:15]} Rf6 {[%emt 0:00:28]} 65. Rxf6 Kxf6 {[%emt 0:00:05]} 66. Kd4 {[%emt 0:00:16]} Kf7 {[%emt 0:01:03]} 67. Kc5 {[%emt 0:00:12]} Be7+ {[%emt 0:00:23]} 68. Kb6 {[%emt 0:00:05]} g5 {[%emt 0:00:29]} 69. Kxa6 {[%emt 0:00:06]} b4 {[%emt 0:00:05]} 70. Kb6 {[%emt 0:00:42]} Ke6 {[%emt 0:00:35]} 71. Kc6 {[%emt 0:00:14]} Ke5 {[%emt 0:00:33]} 72. Kd7 {[%emt 0:00:08]} Kf6 {[%emt 0:00:10]} 73. h4 {[%emt 0:01:48]} Bf8 {[%emt 0:00:38]} 74. h5 {[%emt 0:00:52]} Kg7 {[%emt 0:00:41]} 75. Ke8 {[%emt 0:01:08]} Bc5 {[%emt 0:00:21]} 1/2-1/2

[Event "FIDE World Cup O12-B 2024"]
[Site "Batumi"]
[Date "2024.06.27"]
[Round "5.6"]
[White "Amreyev, Azat"]
[Black "Martinez Flores, Matias"]
[Result "0-1"]
[ECO "B87"]
[WhiteElo "1704"]
[BlackElo "2080"]
[Annotator "NA RC"]
[PlyCount "50"]
[EventDate "2024.06.23"]
[EventType "swiss"]
[EventCountry "GEO"]
[SourceTitle "playchess.com"]
[Source "ChessBase"]
[SourceQuality "1"]
[TimeControl "5400+30"]

1. e4 {[%emt 0:00:23]} c5 {[%emt 0:00:09]} 2. Nf3 {[%emt 0:00:16]} d6 {[%emt 0:00:08]} 3. d4 {[%emt 0:00:25]} cxd4 {[%emt 0:00:05]} 4. Nxd4 {[%emt 0:00:06]} Nf6 {[%emt 0:00:07]} 5. Nc3 {[%emt 0:00:14]} a6 {[%emt 0:00:13]} 6. Bc4 {[%emt 0:00:10]} e6 {[%emt 0:00:07]} 7. O-O {[%emt 0:00:33]} b5 {[%emt 0:00:18]} 8. Bb3 {[%emt 0:00:08]} Be7 {[%emt 0:00:07]} 9. Qf3 {[%emt 0:00:27]} Qb6 {[%emt 0:02:39]} 10. Be3 {[%emt 0:02:25]} Qb7 {[%emt 0:00:05]} 11. Qg3 {[%emt 0:04:51]} Nbd7 {[%emt 0:06:43]} 12. f4 {[%emt 0:35:47] B87: Sicilian Scheveningen/Najdorf: 6 Bc4, with early ...b5.} (12. Rad1 $14 g6 13. f3) 12... Nxe4 {[%emt 0:16:38]} 13. Nxe4 {[%emt 0:03:51]} Qxe4 {[%emt 0:01:11]} 14. f5 {[%emt 0:01:17]} (14. Qxg7 $2 {too greedy.} Qxe3+ 15. Kh1 Bf6 $19) (14. Rae1 $5 Bb7 15. f5 $14) 14... e5 {[%emt 0:15:00]} 15. Rae1 {[%emt 0:03:00]} Bf6 {[%emt 0:08:53]} 16. Kh1 {[%emt 0:07:38]} O-O {[%emt 0:01:38]} 17. Ne6 {[%emt 0:07:46]} fxe6 {[%emt 0:09:35]} 18. fxe6 {[%emt 0:00:10]} Kh8 {[%emt 0:00:08]} 19. Rd1 $17 {[%emt 0:27:41]} ({White should try} 19. Bh6 $15 Qg6 20. Qxg6 hxg6 21. exd7 Bxd7 (21... gxh6 $2 {is the wrong capture.} 22. Rxf6 Bxd7 23. Rxg6 $18) 22. Be3) 19... Bh4 {[%emt 0:17:48]} 20. Rxf8+ {[%emt 0:01:49]} Nxf8 {[%emt 0:00:13]} 21. e7 {[%emt 0:00:23]} Be6 {[%emt 0:00:25]} 22. Rf1 {[%emt 0:01:00]} Bxe7 {[%emt 0:04:42]} 23. Rxf8+ {[%emt 0:00:28]} Rxf8 {[%emt 0:00:11]} 24. Bxe6 {[%emt 0:00:02]} Rf1+ {[%emt 0:00:44]} 25. Bg1 {[%emt 0:00:04]} Qd4 {[%emt 0:00:37]} 0-1